bitfinex/quotes_ETHUSD_20260207
["timestamp","ask_amount","ask_price","bid_price","bid_amount"]
[1770482951202,0.98369833,2056.6,2055.2,0.001]
[1770482951401,0.2335703,2056.4,2055.2,0.001]
[1770482951730,0.98169833,2056.4,2055.2,0.001]
[1770482952632,0.98169833,2056.3,2055.2,0.001]
[1770482953599,0.2335703,2056.2,2055.2,0.001]
[1770482953807,0.98169833,2056.1,2055.2,0.001]
[1770482954007,1.21526863,2056.0,2055.2,0.001]
[1770482955537,0.002,2056.6,2055.2,0.93750811]
[1770482955709,1.08409833,2056.5,2055.2,0.001]
[1770482956217,1.00610286,2056.2,2055.2,0.001]
[1770482956557,0.98169833,2055.8,2055.2,0.001]
[1770482956718,0.98169833,2055.8,2055.0,0.001]
[1770482957959,0.02440453,2056.5,2055.0,0.93750811]
[1770482958110,0.2335703,2056.2,2055.0,0.001]
[1770482958311,0.98169833,2056.2,2055.0,0.001]
[1770482959031,0.98169833,2056.0,2055.0,0.001]
[1770482960042,0.002,2056.6,2055.0,0.93750811]
[1770482960230,0.98369833,2056.6,2055.0,0.93750811]
[1770482960540,0.002,2056.6,2055.0,0.93750811]
[1770482960940,0.98369833,2056.6,2055.0,0.93750811]
[1770482962320,0.98369833,2056.6,2055.1,1.21648581]
[1770482963346,0.98369833,2056.6,2055.2,0.001]
[1770482963521,0.002,2056.0,2055.2,0.001]
[1770482963719,0.002,2056.0,2055.2,0.93750811]
[1770482963920,0.98369833,2056.6,2055.2,0.96191264]
[1770482964149,0.002,2056.6,2055.2,0.96191264]
[1770482965641,0.98369833,2056.6,2055.2,0.93750811]
[1770482965937,0.98369833,2056.6,2055.2,0.001]
[1770482969071,0.98169833,2056.0,2055.2,0.001]
[1770482969934,0.2355703,2056.6,2055.2,0.93750811]
[1770482970132,0.98369833,2056.6,2055.2,2.15389343]
[1770482970333,0.002,2056.6,2055.3,0.93650811]
[1770482970924,0.98369833,2056.6,2055.2,1.24178985]
[1770482971124,0.98369833,2056.6,2055.2,2.17829796]
[1770482971327,0.002,2056.6,2055.3,0.93650811]
[1770482971525,0.98369833,2056.6,2055.2,0.001]
[1770482971939,0.98169833,2056.4,2055.2,0.001]
[1770482972734,0.98169833,2056.2,2055.2,0.001]
[1770482972933,0.98169833,2056.0,2055.2,0.001]
[1770482974750,0.98169833,2055.9,2055.2,0.001]
[1770482975760,0.93788353,2056.4,2055.2,0.001]
[1770482976228,0.93788353,2056.4,2055.3,0.001]
[1770482976430,0.93988353,2056.4,2055.3,0.001]
[1770482978461,0.002,2056.4,2055.3,0.001]
[1770482978820,0.93988353,2056.4,2055.3,0.001]
[1770482979365,0.002,2056.4,2055.3,0.001]
[1770482980060,0.002,2056.4,2055.4,1.00436732]
[1770482980564,0.002,2056.4,2055.4,0.97996279]
[1770482980765,0.002,2056.4,2055.3,0.001]
[1770482981132,0.002,2056.4,2055.4,1.21630826]
[1770482981333,0.002,2056.4,2055.5,0.97996279]
[1770482981666,0.002,2056.6,2055.6,0.97996279]
[1770482982465,0.002,2056.8,2055.8,1.00436732]
[1770482983348,0.002,2056.8,2055.9,1.21601245]
[1770482983549,0.002,2056.8,2055.3,0.001]
[1770482983550,0.93988353,2056.8,2055.3,0.001]
[1770482984767,0.93988353,2056.8,2055.3,1.21736424]
[1770482984934,0.002,2056.8,2055.6,1.21615719]
[1770482985138,0.002,2056.8,2055.7,0.97996279]
[1770482985339,0.002,2056.8,2055.8,1.2160716]
[1770482985565,0.002,2056.8,2055.9,0.97996279]
[1770482986344,0.002,2056.8,2055.6,1.24058422]
[1770482986549,0.93988353,2056.8,2055.4,1.21630797]
[1770482987464,0.93988353,2056.8,2055.4,2.19627076]
[1770482987654,0.002,2056.8,2055.5,0.97996279]
[1770482988040,0.002,2056.8,2055.5,1.00436732]
[1770482988770,0.002,2056.8,2055.6,0.97996279]
[1770482988938,0.93988353,2056.8,2055.5,0.02540453]
[1770482989135,0.93988353,2056.8,2055.5,0.001]
[1770482989360,0.002,2056.6,2055.5,0.001]
[1770482989554,0.93988353,2056.6,2055.5,0.001]
[1770482990386,0.002,2056.6,2055.5,0.001]
[1770482991266,0.002,2056.6,2055.5,0.02540453]
[1770482991467,0.002,2056.8,2055.5,1.00536732]
[1770482991770,0.002,2056.8,2055.7,0.97996279]
[1770482992669,0.002,2056.8,2055.5,0.02540453]
[1770482992866,0.93988353,2056.8,2055.6,1.21618992]
[1770482993556,0.002,2056.8,2055.6,1.21618992]
[1770482994381,0.002,2056.8,2055.6,2.19615271]
[1770482994565,0.002,2056.8,2055.5,0.001]
[1770482994766,0.93988353,2056.8,2055.5,0.001]
[1770482994981,0.002,2056.8,2055.5,0.98096279]
[1770482995180,0.002,2056.8,2055.6,1.21618992]
[1770482995378,0.93988353,2056.8,2055.6,1.21618992]
[1770482995690,0.93988353,2056.8,2055.5,0.001]
[1770482995887,0.93988353,2056.8,2055.5,0.32527128]
[1770482996692,0.002,2056.8,2055.6,0.97996279]
[1770482997287,0.002,2056.8,2055.6,1.00436732]
[1770482997894,0.002,2056.8,2055.7,2.19609354]
[1770482998463,0.002,2056.8,2055.7,1.21613075]
[1770482998784,0.93988353,2056.8,2055.5,0.001]
[1770482999590,0.93988353,2056.8,2055.6,1.21614249]
[1770482999764,0.002,2056.8,2055.6,2.19610528]
[1770483000378,0.002,2056.8,2055.7,1.00436732]
[1770483000680,0.002,2056.8,2055.7,0.97996279]
[1770483001196,0.002,2056.8,2055.8,0.001]
[1770483001378,0.002,2056.6,2055.8,0.001]
[1770483001577,0.93988353,2056.6,2055.8,0.001]
[1770483001775,0.93988353,2056.6,2055.5,0.001]
[1770483003879,0.93988353,2056.6,2055.5,0.32283083]
[1770483004083,0.002,2056.6,2055.6,0.97996279]
[1770483004301,0.002,2056.6,2055.5,0.32283083]
[1770483004675,0.93988353,2056.6,2055.5,0.32283083]
[1770483006006,0.93356488,2056.5,2055.5,0.32283083]
[1770483006998,0.002,2056.6,2055.5,1.53904808]
[1770483007207,0.002,2056.6,2055.5,2.52733632]
[1770483007381,0.002,2056.6,2055.5,1.21721725]
[1770483007697,0.93556488,2056.6,2055.5,0.001]
[1770483010508,0.93356488,2056.4,2055.5,0.001]
[1770483010811,0.93356488,2056.4,2055.3,2.001]
[1770483012421,0.99128329,2056.5,2055.3,2.001]
[1770483013807,0.99128329,2056.5,2055.5,0.001]
[1770483014182,0.99128329,2056.3,2055.5,0.001]
[1770483015524,0.002,2056.4,2055.5,0.001]
[1770483016208,0.99328329,2056.4,2055.5,0.001]
[1770483016593,0.99328329,2056.4,2055.3,2.001]
[1770483018030,0.002,2056.4,2055.3,2.001]
[1770483018307,0.002,2056.4,2055.4,1.21630826]
[1770483018509,0.002,2056.4,2055.5,0.32173083]
[1770483018894,0.99328329,2056.4,2055.5,0.32173083]
[1770483019308,0.002,2056.4,2055.5,0.32173083]
[1770483019717,0.002,2056.4,2055.3,2.001]
[1770483020020,0.99128329,2056.3,2055.3,2.001]
[1770483021421,0.002,2056.4,2055.3,2.001]
[1770483022220,0.99328329,2056.4,2055.3,2.001]
[1770483022516,0.99328329,2056.4,2055.3,0.001]
[1770483024523,0.99128329,2056.2,2055.3,0.001]
[1770483024712,0.99128329,2055.8,2054.8,0.001]
[1770483025693,0.99128329,2055.6,2054.7,0.001]
[1770483026092,0.99128329,2055.2,2053.3,0.001]
[1770483026391,0.99128329,2055.9,2054.1,1.21707803]
[1770483026708,0.99128329,2056.2,2054.2,0.91699637]
[1770483026925,0.99128329,2056.0,2054.4,0.02440453]
[1770483027123,0.99128329,2056.0,2055.5,0.001]
[1770483027335,0.99128329,2056.0,2054.4,1.24127611]
[1770483027515,0.99128329,2056.0,2054.0,4.89278803]
[1770483027516,0.99128329,2055.8,2055.3,0.001]
[1770483028929,0.99128329,2055.8,2054.4,0.001]
[1770483029334,0.99128329,2054.6,2053.3,0.02540453]
[1770483029504,0.99128329,2054.3,2053.3,0.001]
[1770483030021,0.1024,2054.6,2053.3,0.001]
[1770483030332,0.99128329,2054.6,2053.3,0.001]
[1770483031045,1.85811867,2054.5,2053.3,0.001]
[1770483031232,1.22485359,2054.4,2053.3,0.001]
[1770483031415,0.99128329,2053.9,2053.1,0.001]
[1770483031620,0.1024,2054.1,2052.9,0.001]
[1770483031621,0.99128329,2053.7,2052.9,0.001]
[1770483032125,0.99128329,2053.7,2053.0,0.02440453]
[1770483032431,1.09368329,2054.5,2053.0,0.02440453]
[1770483032609,0.99128329,2054.1,2052.9,0.001]
[1770483032936,0.99128329,2054.1,2053.1,0.02440453]
[1770483033107,0.99128329,2055.7,2053.4,0.9414009]
[1770483033431,0.99128329,2055.1,2053.7,0.02440453]
[1770483033601,0.99128329,2054.9,2053.7,0.02440453]
[1770483033932,0.99128329,2054.7,2053.5,0.02440453]
[1770483034235,0.99128329,2054.5,2053.0,0.02440453]
[1770483034612,1.01568782,2054.3,2052.9,0.001]
[1770483035135,0.99128329,2054.3,2052.9,1.2187467]
[1770483035313,0.99128329,2054.3,2052.9,0.001]
[1770483035514,0.9933468,2054.7,2052.9,0.001]
[1770483035735,0.4398604,2055.2,2052.9,0.001]
[1770483035736,1.40880267,2055.2,2052.9,0.95142876]
[1770483035919,0.9933468,2055.1,2052.9,0.95142876]
[1770483036120,0.9933468,2055.1,2053.2,0.95042876]
[1770483036838,0.9933468,2054.7,2052.9,0.001]
[1770483037839,0.9933468,2054.7,2053.0,1.21773015]
[1770483038614,0.9933468,2054.5,2053.0,1.21773015]
[1770483039039,0.9933468,2054.5,2052.9,0.001]
[1770483039335,0.9933468,2054.3,2052.9,0.001]
[1770483039542,1.2269171,2054.6,2052.9,1.21875315]
[1770483039739,1.2269171,2054.6,2053.0,0.02440453]
[1770483039913,1.2269171,2054.6,2052.9,1.21875315]
[1770483040114,0.9933468,2054.6,2053.2,0.001]
[1770483040328,0.9933468,2054.2,2053.2,0.001]
[1770483042018,0.9933468,2054.8,2053.2,0.92702423]
[1770483042248,4.88963757,2055.8,2053.2,0.92702423]
[1770483042249,0.9933468,2055.3,2053.4,0.92602423]
[1770483042446,0.9933468,2054.9,2053.3,0.02440453]
[1770483043022,0.9933468,2054.9,2053.2,0.001]
[1770483044418,1.2269171,2055.0,2053.3,0.95042876]
[1770483044619,0.9933468,2055.0,2053.3,0.95042876]
[1770483046247,0.9933468,2055.0,2053.4,1.21749293]
[1770483047056,0.9933468,2054.8,2053.2,0.001]
[1770483047257,0.9933468,2054.6,2053.2,0.001]
[1770483047758,0.9933468,2054.2,2053.2,0.001]
[1770483047975,0.02440453,2053.4,2052.0,0.001]
[1770483048258,0.25797483,2053.1,2052.0,0.001]
[1770483048444,0.1024,2054.0,2052.2,0.95042876]
[1770483048752,1.2269171,2054.1,2052.0,0.001]
[1770483049057,0.02440453,2054.1,2052.2,0.95042876]
[1770483049217,0.53665792,2054.3,2052.2,0.95042876]
[1770483049421,0.1024,2054.0,2052.2,0.95042876]
[1770483049631,0.9933468,2053.8,2052.0,0.001]
[1770483050827,0.25797483,2053.9,2052.0,0.001]
[1770483050828,1.01775133,2053.6,2052.0,0.001]
[1770483051141,0.9933468,2053.4,2052.0,0.001]
[1770483052753,0.9933468,2053.5,2052.0,0.001]
[1770483052957,0.9933468,2053.5,2052.4,0.001]
[1770483053622,0.9933468,2053.9,2052.4,0.001]
[1770483054031,0.9933468,2053.7,2052.4,0.001]
[1770483055948,0.9933468,2053.5,2052.4,0.001]
[1770483056331,0.002,2054.3,2052.5,0.92602423]
[1770483056538,0.002,2054.3,2053.0,0.92602423]
[1770483056941,0.002,2054.3,2053.1,1.21767083]
[1770483057151,0.002,2054.3,2052.9,1.21777576]
[1770483057152,0.9953468,2054.3,2052.9,1.21777576]
[1770483057378,0.9953468,2054.3,2053.1,1.21767083]
[1770483057379,0.002,2054.3,2053.1,1.21767083]
[1770483057736,0.002,2054.3,2053.3,0.02440453]
[1770483058100,0.002,2054.5,2053.3,0.02440453]
[1770483058101,0.002,2054.5,2053.3,0.95042876]
[1770483058361,0.002,2054.5,2053.6,0.02440453]
[1770483058770,0.002,2054.5,2053.6,0.95042876]
[1770483059260,0.002,2054.5,2053.7,1.21731508]
[1770483060745,0.002,2054.5,2053.7,2.16774384]
[1770483060934,0.9933468,2055.3,2053.7,2.16774384]
[1770483061744,0.002,2055.4,2053.9,0.95042876]
[1770483062157,0.9953468,2055.4,2053.7,1.21731508]
[1770483062760,0.9953468,2055.4,2053.5,1.21741819]
[1770483063064,0.9933468,2055.2,2053.5,1.21741819]
[1770483063664,0.9933468,2055.2,2053.6,0.92602423]
[1770483063841,0.002,2055.4,2053.6,0.95042876]
[1770483064036,0.9953468,2055.4,2053.6,0.95042876]
[1770483064380,0.002,2055.4,2054.0,0.92602423]
[1770483064678,0.9953468,2055.4,2053.6,0.95042876]
[1770483064852,0.9953468,2055.4,2053.6,0.02440453]
[1770483065179,0.9953468,2055.4,2053.7,1.21731508]
[1770483065382,0.9953468,2055.4,2053.7,2.14333931]
[1770483065563,0.9953468,2055.4,2053.7,1.21731508]
[1770483065762,0.002,2055.2,2053.7,1.21731508]
[1770483065963,0.93692949,2055.2,2053.7,1.21731508]
[1770483067558,0.93692949,2055.2,2053.8,0.92651873]
[1770483067883,0.002,2055.2,2053.8,0.92651873]
[1770483068185,0.002,2055.2,2053.9,0.02440453]
[1770483068381,0.002,2055.2,2053.9,0.95092326]
[1770483068754,0.002,2055.2,2054.2,0.02440453]
[1770483068954,0.002,2055.2,2054.2,0.95092326]
[1770483069371,0.002,2055.2,2054.3,1.21695954]
[1770483069588,0.002,2055.2,2054.3,2.14347827]
[1770483069884,0.002,2055.2,2054.4,0.92651873]
[1770483070594,0.002,2055.2,2054.0,0.92651873]
[1770483070754,0.002,2055.2,2053.9,1.21719437]
[1770483070955,0.002,2055.2,2054.2,1.21698932]
[1770483071283,0.002,2055.2,2054.3,0.96005263]
[1770483071464,0.002,2055.2,2054.4,1.21690031]
[1770483071866,0.002,2055.2,2054.0,1.21707222]
[1770483072069,0.002,2055.2,2054.3,1.24133005]
[1770483072884,0.002,2055.2,2054.1,1.21706304]
[1770483073114,0.002,2055.2,2053.7,0.02440453]
[1770483073115,0.99112286,2055.1,2053.7,1.24170558]
[1770483073890,0.99112286,2055.1,2053.7,1.21730105]
[1770483074195,0.002,2055.2,2054.1,0.9356481]
[1770483074361,0.002,2055.2,2054.0,0.02440453]
[1770483075377,0.002,2055.2,2053.7,0.9356481]
[1770483075582,0.99312286,2055.2,2053.5,1.21742319]
[1770483076790,0.99312286,2055.2,2053.3,0.96005263]
[1770483076791,0.99112286,2055.0,2053.3,0.96005263]
[1770483077693,0.99112286,2055.0,2053.8,0.001]
[1770483079195,0.99112286,2055.0,2053.9,0.02440453]
[1770483079399,0.002,2055.2,2053.9,0.02440453]
[1770483079609,0.99312286,2055.2,2053.9,1.24158535]
[1770483079774,0.99312286,2055.2,2053.9,1.21718082]
[1770483081099,0.99312286,2055.2,2053.8,0.001]
[1770483082090,0.99312286,2055.2,2053.9,0.02440453]
[1770483082494,0.002,2055.2,2053.9,0.9356481]
[1770483082700,0.99312286,2055.2,2053.8,0.001]
[1770483083012,0.2335703,2055.1,2053.8,0.001]
[1770483083186,0.99112286,2055.0,2053.8,0.001]
[1770483083373,0.96796821,2055.0,2053.8,0.001]
[1770483089800,0.002,2055.0,2054.0,0.9366481]
[1770483090606,0.002,2055.0,2054.2,0.02440453]
[1770483091303,0.002,2055.0,2054.0,0.001]
[1770483091599,0.99312286,2055.0,2054.0,0.001]
[1770483091978,0.002,2055.0,2054.0,0.9366481]
[1770483092578,0.002,2055.0,2054.0,0.001]
[1770483093879,0.002,2055.0,2054.0,1.21813729]
[1770483094401,0.002,2055.0,2054.0,0.001]
[1770483094604,0.99312286,2055.0,2054.0,0.001]
[1770483095692,0.002,2055.0,2054.0,0.001]
[1770483096520,0.96204764,2055.0,2054.0,0.001]
[1770483098603,0.002,2055.0,2054.0,0.001]
[1770483099205,0.002,2055.0,2054.1,0.90462357]
[1770483099591,0.002,2055.0,2054.0,0.001]
[1770483099992,0.96204764,2055.0,2054.0,0.001]
[1770483101945,0.96204764,2055.0,2054.2,0.001]
[1770483102230,0.002,2054.8,2054.2,0.001]
[1770483102723,0.96204764,2054.8,2054.2,0.001]
[1770483102918,0.002,2054.8,2054.2,0.001]
[1770483103825,0.002,2055.0,2054.2,0.001]
[1770483104125,0.002,2055.2,2054.3,0.90462357]
[1770483104325,0.002,2056.1,2054.6,0.90462357]
[1770483104534,0.002,2056.1,2054.9,0.90462357]
[1770483105128,0.96004764,2056.0,2054.8,1.21664763]
[1770483106003,0.002,2056.1,2054.9,0.9290281]
[1770483106412,0.002,2056.1,2054.9,0.02440453]
[1770483106612,0.96204764,2056.1,2054.8,1.21664763]
[1770483106813,0.96204764,2056.1,2054.6,1.21678185]
[1770483107114,0.96204764,2056.1,2054.8,0.02440453]
[1770483107316,0.96204764,2056.1,2054.8,0.9290281]
[1770483107629,0.002,2056.1,2054.8,0.9290281]
[1770483107805,0.002,2056.1,2055.1,0.02440453]
[1770483108010,0.002,2056.1,2055.1,0.9290281]
[1770483108634,0.002,2056.1,2055.4,0.02440453]
[1770483108929,0.002,2056.1,2055.2,1.21641045]
[1770483109332,0.002,2056.1,2054.9,2.1211595]
[1770483109631,0.96204764,2056.1,2054.7,1.21671585]
[1770483110024,0.96204764,2056.1,2054.8,0.02440453]
[1770483110214,0.002,2056.1,2055.0,1.21650472]
[1770483110726,0.002,2056.1,2055.1,0.9290281]
[1770483110935,0.002,2056.1,2055.2,1.21642662]
[1770483111139,0.002,2056.6,2055.8,0.90462357]
[1770483111640,0.002,2056.6,2055.7,0.02440453]
[1770483112128,0.002,2056.6,2055.7,0.9290281]
[1770483112316,0.002,2056.6,2055.7,0.02440453]
[1770483112717,0.002,2056.6,2055.7,0.9290281]
[1770483112918,0.002,2056.6,2055.7,0.02440453]
[1770483113437,0.002,2056.6,2055.6,1.2161677]
[1770483113812,0.96204764,2056.6,2055.4,1.21630636]
[1770483114215,0.96204764,2056.6,2055.0,1.21653874]
[1770483114532,0.96204764,2056.6,2054.8,4.8657065]
[1770483114734,0.96204764,2056.6,2054.7,1.21665083]
[1770483114908,0.96204764,2056.6,2055.1,0.001]
[1770483115111,0.96004764,2056.3,2055.1,0.001]
[1770483118325,0.002,2056.4,2055.1,0.90562357]
[1770483118522,0.96204764,2056.4,2055.1,0.90562357]
[1770483118729,0.002,2056.4,2055.1,0.90562357]
[1770483119042,0.96204764,2056.4,2055.1,0.90562357]
[1770483119717,0.96204764,2056.4,2055.1,0.001]
[1770483121615,0.002,2056.4,2055.2,0.90462357]
[1770483121820,0.002,2056.4,2055.3,2.12099101]
[1770483122956,0.002,2056.4,2055.4,0.90462357]
[1770483123116,0.002,2056.6,2055.4,0.90462357]
[1770483123818,0.002,2056.6,2055.5,1.21624908]
[1770483124215,0.002,2056.6,2055.6,0.02440453]
[1770483124746,0.002,2057.1,2055.9,0.9290281]
[1770483125820,0.002,2057.1,2056.1,0.99091768]
[1770483126239,0.002,2057.4,2056.3,0.99091768]
[1770483126448,0.002,2057.6,2056.6,0.99091768]
[1770483127623,0.9935924,2057.7,2056.5,0.02440453]
[1770483127832,0.35014767,2057.8,2056.5,0.99091768]
[1770483128130,0.35014767,2057.8,2056.2,0.02440453]
[1770483128131,0.9935924,2057.7,2056.3,1.09331768]
[1770483128524,0.35014767,2057.8,2056.3,1.09331768]
[1770483128725,0.35014767,2057.8,2056.3,5.95640786]
[1770483129066,0.35014767,2057.8,2056.6,0.99091768]
[1770483129350,0.9935924,2057.7,2056.5,1.21562738]
[1770483129553,0.35014767,2057.8,2056.6,0.99091768]
[1770483130051,0.9935924,2057.7,2056.2,2.2066957]
[1770483130357,0.35014767,2057.8,2056.2,2.2066957]
[1770483130358,0.35014767,2057.8,2056.7,0.99091768]
[1770483130650,0.9935924,2058.7,2057.1,0.99091768]
[1770483131656,0.9935924,2058.7,2056.6,0.02440453]
[1770483131831,0.9935924,2058.7,2056.7,0.97283329]
[1770483132349,0.92607422,2058.5,2056.7,0.97283329]
[1770483133054,0.92607422,2058.3,2056.5,0.1024]
[1770483133256,0.92607422,2058.3,2056.5,1.07523329]
[1770483133857,0.92607422,2058.3,2056.9,0.97283329]
[1770483134158,0.92607422,2058.6,2056.9,0.97283329]
[1770483135151,0.92607422,2058.6,2056.5,1.31802464]
[1770483135350,0.92607422,2058.6,2056.6,0.97283329]
[1770483135562,0.92607422,2058.6,2056.7,0.02440453]
[1770483135745,0.92607422,2058.6,2056.8,0.97283329]
[1770483136333,0.92607422,2058.6,2056.9,0.97283329]
[1770483137841,1.02847422,2058.7,2056.9,0.97283329]
[1770483138241,0.92607422,2058.6,2056.9,0.97283329]
[1770483138673,0.92607422,2058.0,2056.2,0.02440453]
[1770483138964,0.92607422,2058.0,2056.2,0.99723782]
[1770483139167,0.92607422,2058.0,2056.4,0.02440453]
[1770483139764,0.92607422,2058.0,2056.2,0.97283329]
[1770483139968,0.92607422,2058.0,2056.1,0.02440453]
[1770483140469,0.92607422,2057.9,2056.1,0.02440453]
[1770483141337,1.21478086,2058.0,2055.9,0.99723782]
[1770483141338,0.92607422,2057.7,2055.9,0.99723782]
[1770483141539,0.92607422,2057.7,2056.2,0.02440453]
[1770483143470,0.92607422,2057.7,2056.2,0.99723782]
[1770483143672,0.92607422,2057.7,2056.2,0.02440453]
[1770483143874,0.92607422,2057.7,2056.0,0.97283329]
[1770483144681,0.92607422,2057.5,2055.9,0.97283329]
[1770483146470,0.02440453,2057.7,2055.9,0.97283329]
[1770483146471,0.92607422,2057.6,2055.9,0.97283329]
[1770483146979,0.92607422,2057.6,2055.8,0.02540453]
[1770483146980,0.87607422,2057.6,2055.8,0.02540453]
[1770483147185,0.92607422,2057.4,2055.8,0.001]
[1770483147679,0.2335703,2057.1,2055.8,0.001]
[1770483147850,0.92607422,2057.0,2055.8,0.001]
[1770483150061,1.21537458,2057.0,2055.8,0.001]
[1770483150374,0.92607422,2056.8,2055.8,0.001]
[1770483152575,0.95047875,2056.6,2056.0,0.001]
[1770483152755,0.95047875,2056.6,2055.8,0.001]
[1770483153070,0.92607422,2056.2,2055.5,0.001]
[1770483153853,0.95047875,2056.3,2055.5,0.001]
[1770483155683,0.95047875,2056.3,2055.1,0.001]
[1770483155981,0.94246194,2056.1,2055.1,0.001]
[1770483156271,0.94246194,2055.9,2055.1,0.001]
[1770483158256,0.60766315,2056.9,2055.1,0.99033417]
[1770483158575,0.94246194,2057.0,2055.1,0.99033417]
[1770483158771,0.94246194,2056.8,2055.1,0.99033417]
[1770483162890,0.94246194,2056.6,2055.1,0.001]
[1770483163351,0.94246194,2056.2,2055.1,0.001]
[1770483164991,0.94246194,2056.0,2055.1,0.001]
[1770483165161,0.94246194,2056.0,2055.3,0.001]
[1770483165482,0.94246194,2056.0,2055.1,0.001]
[1770483167488,0.002,2056.6,2055.1,0.99033417]
[1770483169200,0.94246194,2056.5,2055.1,0.001]
[1770483169788,0.94246194,2056.5,2055.1,0.99033417]
[1770483169989,0.002,2056.6,2055.1,0.99033417]
[1770483170196,0.94446194,2056.6,2055.1,0.99033417]
[1770483172417,0.94446194,2056.6,2055.1,0.001]
[1770483172899,0.94446194,2056.6,2055.1,0.99033417]
[1770483175613,0.94246194,2056.4,2055.1,0.001]
[1770483177111,0.25797483,2056.5,2055.2,0.98933417]
[1770483177318,0.002,2056.6,2055.2,0.98933417]
[1770483177693,0.94446194,2056.6,2055.2,0.98933417]
[1770483177897,0.94446194,2056.6,2055.3,0.001]
[1770483178109,0.002,2056.4,2055.3,0.001]
[1770483179919,0.94446194,2056.4,2055.3,0.001]
[1770483180507,0.94246194,2056.2,2055.3,0.001]
[1770483181019,0.61008665,2056.3,2055.3,0.001]
[1770483181232,0.002,2056.4,2055.3,0.001]
[1770483181532,0.94446194,2056.4,2055.3,0.001]
[1770483185029,0.002,2056.4,2055.3,0.99033417]
[1770483187999,0.002,2056.4,2055.4,0.97844726]
[1770483190308,0.002,2056.4,2055.6,0.97844726]
[1770483190629,0.002,2056.2,2055.6,0.97844726]
[1770483196200,0.002,2056.2,2055.5,0.001]
[1770483196512,0.002,2056.2,2055.5,0.99404889]
[1770483196942,0.002,2056.6,2055.6,1.01745342]
[1770483197247,0.94831736,2056.5,2055.5,0.001]
[1770483198029,0.002,2056.6,2055.5,0.99404889]
[1770483199014,0.95031736,2056.6,2055.5,0.001]
[1770483202840,0.94831736,2056.4,2055.5,0.001]
[1770483204224,0.002,2056.2,2055.5,0.001]
[1770483204433,0.002,2056.2,2055.5,0.99404889]
[1770483204633,0.002,2056.2,2055.7,0.99304889]
[1770483207847,0.002,2056.2,2055.5,0.001]
[1770483208217,0.002,2056.2,2055.5,0.99404889]
[1770483209141,0.002,2056.2,2055.6,0.02440453]
[1770483209337,0.002,2056.2,2055.6,0.99304889]
[1770483209847,0.002,2056.4,2055.8,0.99304889]
[1770483210724,0.002,2056.4,2055.7,0.02440453]
[1770483211046,0.002,2056.4,2055.7,1.01745342]
[1770483212724,0.002,2056.4,2055.7,0.99304889]
[1770483213647,0.002,2056.4,2055.5,0.001]
[1770483213824,0.002,2056.4,2055.5,0.99404889]
[1770483214329,0.002,2056.4,2055.5,0.001]
[1770483214330,0.94831736,2056.3,2055.5,0.001]
[1770483216530,0.002,2056.4,2055.6,0.9436333]
[1770483216850,0.002,2056.4,2055.7,0.001]
[1770483218930,0.002,2056.4,2055.7,0.9446333]
[1770483220554,0.002,2056.4,2055.7,0.001]
[1770483220938,0.90439624,2056.4,2055.7,0.001]
[1770483226846,0.002,2056.4,2055.7,0.001]
[1770483227232,0.002,2056.4,2055.7,0.9446333]
[1770483227744,0.90239624,2056.3,2055.7,0.001]
[1770483228663,0.002,2056.4,2055.7,0.001]
[1770483228864,0.90439624,2056.4,2055.7,0.001]
[1770483229363,0.90239624,2056.1,2055.7,0.001]
[1770483229843,0.002,2056.2,2055.7,0.9446333]
[1770483230043,0.002,2056.2,2055.7,0.001]
[1770483230934,0.90439624,2056.2,2055.7,0.001]
[1770483242869,0.90439624,2056.2,2055.9,0.001]
[1770483243174,0.002,2056.0,2055.7,0.001]
[1770483245060,0.002,2056.0,2055.7,0.9446333]
[1770483245264,0.002,2056.0,2055.7,0.001]
[1770483248257,0.002,2056.0,2055.7,0.95036035]
[1770483248762,0.002,2056.0,2055.7,0.001]
[1770483250077,0.002,2056.0,2055.7,0.95036035]
[1770483250579,0.002,2056.4,2055.8,0.9270615]
[1770483250748,0.002,2056.6,2055.8,0.9270615]
[1770483251376,0.002,2056.6,2055.7,0.9280615]
[1770483251989,0.002,2056.6,2055.8,0.9270615]
[1770483252696,0.002,2056.6,2055.9,0.9270615]
[1770483252897,0.002,2056.6,2056.0,0.9270615]
[1770483256464,0.002,2056.4,2056.0,0.9270615]
[1770483256799,0.002,2056.6,2056.1,0.9270615]
[1770483257574,0.98074283,2056.6,2055.9,0.001]
[1770483258876,0.97874283,2056.5,2055.9,0.001]
[1770483260425,0.97874283,2056.5,2055.7,0.001]
[1770483260904,0.97874283,2056.1,2055.5,0.001]
[1770483261274,0.97874283,2056.1,2054.9,0.001]
[1770483261891,0.97874283,2055.9,2054.9,0.001]
[1770483262895,0.97874283,2055.7,2054.9,0.001]
[1770483263502,0.97874283,2055.6,2054.9,0.001]
[1770483263877,0.97874283,2055.6,2054.9,0.002]
[1770483264390,0.1024,2056.3,2055.0,0.9270615]
[1770483264708,0.002,2056.6,2055.3,0.9270615]
[1770483264892,0.02440453,2056.1,2054.9,0.002]
[1770483265072,0.97874283,2055.6,2054.9,0.001]
[1770483266200,0.98074283,2056.6,2055.1,0.9270615]
[1770483266388,0.97874283,2056.4,2055.1,0.9270615]
[1770483266709,0.97874283,2056.4,2055.2,0.001]
[1770483266908,0.97874283,2056.4,2055.2,0.9280615]
[1770483267075,0.002,2056.6,2055.2,0.9280615]
[1770483267280,0.98074283,2056.6,2055.2,0.9280615]
[1770483268395,0.98074283,2056.6,2055.4,0.001]
[1770483268599,0.002,2056.4,2055.4,0.001]
[1770483268805,0.002,2056.4,2055.5,0.001]
[1770483269100,0.98074283,2056.4,2055.5,0.001]
[1770483269807,0.002,2056.4,2055.5,0.9280615]
[1770483271887,0.002,2056.4,2055.5,0.9270615]